[Event "Titled Tuesday Blitz December 27 Late 2022"]
[White "Barp, Alberto"]
[Black "Karacsonyi, Gellert"]
[WhiteFideId "872555"]
[BlackFideId "764620"]
[WhiteElo "2432"]
[BlackElo "2385"]
[Result "1-0"]
[Round "08"]
[TimeControl "180+2"]
[Date "2022.12.27"]
[WhiteClock "0:02:01"]
[BlackClock "0:02:31"]

1. d4 {[%clk 0:03:00]}  Nf6 {[%clk 0:02:58]} 2. c4 {[%clk 0:02:59]}  e6 {[%clk 0:02:58]} 3. g3 {[%clk 0:02:54]}  d5 {[%clk 0:02:57]} 4. Bg2 {[%clk 0:02:55]}  dxc4 {[%clk 0:02:58]} 5. Nf3 {[%clk 0:02:54]}  Bd7 {[%clk 0:02:58]} 6. Ne5 {[%clk 0:02:54]}  Bc6 {[%clk 0:02:59]} 7. Nxc6 {[%clk 0:02:55]}  Nxc6 {[%clk 0:02:59]} 8. O-O {[%clk 0:02:56]}  Qd7 {[%clk 0:03:00]} 9. e3 {[%clk 0:02:56]}  O-O-O {[%clk 0:03:00]} 10. Nd2 {[%clk 0:02:57]}  e5 {[%clk 0:03:00]} 11. Nxc4 {[%clk 0:02:57]}  exd4 {[%clk 0:03:00]} 12. Qa4 {[%clk 0:02:43]}  Nd5 {[%clk 0:02:59]} 13. exd4 {[%clk 0:02:41]}  Kb8 {[%clk 0:02:54]} 14. Rd1 {[%clk 0:02:33]}  h5 {[%clk 0:02:49]} 15. Ne3 {[%clk 0:02:18]}  Nce7 {[%clk 0:02:41]} 16. Qb3 {[%clk 0:02:15]}  Nxe3 {[%clk 0:02:40]} 17. Bxe3 {[%clk 0:02:09]}  Nd5 {[%clk 0:02:39]} 18. Rac1 {[%clk 0:02:05]}  f6 {[%clk 0:02:31]} 19. Bf4 {[%clk 0:02:01]} 1-0


[Site "https://www.chess.com"]

[Event "Titled Tuesday Blitz December 27 Late 2022"]
[White "Beerdsen, Thomas"]
[Black "Yurovskykh, Oleksandr"]
[WhiteFideId "1030108"]
[BlackFideId "14134020"]
[WhiteElo "2507"]
[BlackElo "2328"]
[Result "1-0"]
[Round "08"]
[TimeControl "180+2"]
[Date "2022.12.27"]
[WhiteClock "0:01:39"]
[BlackClock "0:00:07"]

1. e4 {[%clk 0:03:00]}  d5 {[%clk 0:02:59]} 2. exd5 {[%clk 0:03:00]}  Qxd5 {[%clk 0:03:00]} 3. Nc3 {[%clk 0:03:00]}  Qd8 {[%clk 0:03:00]} 4. Bc4 {[%clk 0:03:00]}  c5 {[%clk 0:02:59]} 5. Qh5 {[%clk 0:02:59]}  e6 {[%clk 0:02:58]} 6. Nf3 {[%clk 0:03:00]}  Nf6 {[%clk 0:02:57]} 7. Qh4 {[%clk 0:02:59]}  Nc6 {[%clk 0:02:56]} 8. O-O {[%clk 0:03:00]}  Be7 {[%clk 0:02:55]} 9. Re1 {[%clk 0:02:59]}  O-O {[%clk 0:02:52]} 10. d3 {[%clk 0:02:59]}  a6 {[%clk 0:02:37]} 11. a4 {[%clk 0:02:58]}  b6 {[%clk 0:02:35]} 12. Bd2 {[%clk 0:02:49]}  Bb7 {[%clk 0:02:35]} 13. Ng5 {[%clk 0:02:49]}  h6 {[%clk 0:02:24]} 14. Nxf7 {[%clk 0:02:47]}  Rxf7 {[%clk 0:02:21]} 15. Rxe6 {[%clk 0:02:47]}  Nd4 {[%clk 0:01:54]} 16. Rae1 {[%clk 0:02:29]}  Nxe6 {[%clk 0:01:52]} 17. Rxe6 {[%clk 0:02:30]}  Nd5 {[%clk 0:01:04]} 18. Qh5 {[%clk 0:02:28]}  Bg5 {[%clk 0:00:56]} 19. Bxg5 {[%clk 0:02:18]}  hxg5 {[%clk 0:00:54]} 20. Ne4 {[%clk 0:02:11]}  Nf4 {[%clk 0:00:29]} 21. Qg4 {[%clk 0:02:08]}  Bd5 {[%clk 0:00:27]} 22. Rd6 {[%clk 0:02:02]}  Bxc4 {[%clk 0:00:19]} 23. Rxd8+ {[%clk 0:02:02]}  Rxd8 {[%clk 0:00:20]} 24. dxc4 {[%clk 0:02:02]}  Re7 {[%clk 0:00:21]} 25. f3 {[%clk 0:01:49]}  Re5 {[%clk 0:00:21]} 26. h4 {[%clk 0:01:48]}  Ne6 {[%clk 0:00:18]} 27. hxg5 {[%clk 0:01:47]}  Rd4 {[%clk 0:00:17]} 28. c3 {[%clk 0:01:46]}  Rd1+ {[%clk 0:00:14]} 29. Kh2 {[%clk 0:01:46]}  Rb1 {[%clk 0:00:14]} 30. Qg3 {[%clk 0:01:44]}  Rf5 {[%clk 0:00:12]} 31. Qb8+ {[%clk 0:01:45]}  Rf8 {[%clk 0:00:08]} 32. Qxb6 {[%clk 0:01:44]}  Nf4 {[%clk 0:00:09]} 33. Nxc5 {[%clk 0:01:39]}  Rc1 {[%clk 0:00:08]} 34. Ne6 {[%clk 0:01:38]}  Nxe6 {[%clk 0:00:06]} 35. Qxe6+ {[%clk 0:01:39]}  Kh8 {[%clk 0:00:07]} 36. g6 {[%clk 0:01:39]} 1-0


[Site "https://www.chess.com"]

[Event "Titled Tuesday Blitz December 27 Late 2022"]
[White "Bryakin, Mikhail"]
[Black "Solon, Nathan"]
[WhiteFideId "4165314"]
[BlackFideId "2017229"]
[WhiteElo "2455"]
[BlackElo "2306"]
[Result "1-0"]
[Round "08"]
[TimeControl "180+2"]
[Date "2022.12.27"]
[WhiteClock "0:00:08"]
[BlackClock "0:00:05"]

1. Nf3 {[%clk 0:02:52]}  d5 {[%clk 0:02:59]} 2. c4 {[%clk 0:02:51]}  e6 {[%clk 0:02:58]} 3. b3 {[%clk 0:02:50]}  d4 {[%clk 0:02:57]} 4. d3 {[%clk 0:02:45]}  Nc6 {[%clk 0:02:55]} 5. g3 {[%clk 0:02:46]}  e5 {[%clk 0:02:53]} 6. Bg2 {[%clk 0:02:46]}  Bb4+ {[%clk 0:02:53]} 7. Nbd2 {[%clk 0:02:45]}  a5 {[%clk 0:02:53]} 8. a3 {[%clk 0:02:45]}  Bc5 {[%clk 0:02:50]} 9. Bb2 {[%clk 0:02:41]}  Nf6 {[%clk 0:02:49]} 10. Ng5 {[%clk 0:02:41]}  O-O {[%clk 0:02:43]} 11. O-O {[%clk 0:02:41]}  Re8 {[%clk 0:02:31]} 12. Nge4 {[%clk 0:02:41]}  Nxe4 {[%clk 0:02:31]} 13. dxe4 {[%clk 0:02:37]}  Qe7 {[%clk 0:02:23]} 14. Nf3 {[%clk 0:02:36]}  Be6 {[%clk 0:02:18]} 15. Ne1 {[%clk 0:02:36]}  Rad8 {[%clk 0:02:12]} 16. Nd3 {[%clk 0:02:36]}  Ba7 {[%clk 0:02:12]} 17. Rc1 {[%clk 0:02:35]}  f6 {[%clk 0:02:07]} 18. c5 {[%clk 0:02:33]}  Qf7 {[%clk 0:01:47]} 19. b4 {[%clk 0:02:33]}  Bc4 {[%clk 0:01:41]} 20. Qd2 {[%clk 0:02:25]}  b5 {[%clk 0:01:31]} 21. f4 {[%clk 0:02:15]}  Qe7 {[%clk 0:01:27]} 22. f5 {[%clk 0:02:12]}  Ra8 {[%clk 0:01:06]} 23. g4 {[%clk 0:02:09]}  axb4 {[%clk 0:01:01]} 24. axb4 {[%clk 0:02:08]}  Bb8 {[%clk 0:00:56]} 25. Ra1 {[%clk 0:02:09]}  Rxa1 {[%clk 0:00:48]} 26. Rxa1 {[%clk 0:02:09]}  Nd8 {[%clk 0:00:38]} 27. h4 {[%clk 0:02:08]}  Nf7 {[%clk 0:00:38]} 28. Bf3 {[%clk 0:02:08]}  c6 {[%clk 0:00:35]} 29. Qc1 {[%clk 0:02:00]}  g6 {[%clk 0:00:35]} 30. Kf2 {[%clk 0:01:57]}  gxf5 {[%clk 0:00:33]} 31. gxf5 {[%clk 0:01:56]}  Kh8 {[%clk 0:00:33]} 32. Ra6 {[%clk 0:01:52]}  Rg8 {[%clk 0:00:28]} 33. Rxc6 {[%clk 0:01:47]}  Nd8 {[%clk 0:00:28]} 34. Ra6 {[%clk 0:01:45]}  Qg7 {[%clk 0:00:28]} 35. Qh1 {[%clk 0:01:31]}  Qg3+ {[%clk 0:00:26]} 36. Kf1 {[%clk 0:01:32]}  Bxd3 {[%clk 0:00:17]} 37. exd3 {[%clk 0:01:33]}  Qf4 {[%clk 0:00:17]} 38. Ra1 {[%clk 0:01:08]}  Qd2 {[%clk 0:00:17]} 39. Bc1 {[%clk 0:00:44]}  Qc3 {[%clk 0:00:17]} 40. Qh2 {[%clk 0:00:24]}  Qxa1 {[%clk 0:00:16]} 41. Qd2 {[%clk 0:00:25]}  Nc6 {[%clk 0:00:13]} 42. Qh6 {[%clk 0:00:25]}  Rg7 {[%clk 0:00:10]} 43. Ke2 {[%clk 0:00:25]}  Qa2+ {[%clk 0:00:10]} 44. Bd2 {[%clk 0:00:25]}  Qf7 {[%clk 0:00:10]} 45. Bh5 {[%clk 0:00:17]}  Qf8 {[%clk 0:00:11]} 46. Bg5 {[%clk 0:00:18]}  fxg5 {[%clk 0:00:09]} 47. hxg5 {[%clk 0:00:19]}  Nd8 {[%clk 0:00:05]} 48. g6 {[%clk 0:00:19]}  Qf6 {[%clk 0:00:02]} 49. Bf3 {[%clk 0:00:15]}  Nc6 {[%clk 0:00:02]} 50. Qh1 {[%clk 0:00:14]}  Nxb4 {[%clk 0:00:03]} 51. Qb1 {[%clk 0:00:14]}  Nc6 {[%clk 0:00:03]} 52. Qxb5 {[%clk 0:00:15]}  Rg8 {[%clk 0:00:03]} 53. Bh5 {[%clk 0:00:15]}  h6 {[%clk 0:00:03]} 54. Qc4 {[%clk 0:00:10]}  Rg7 {[%clk 0:00:02]} 55. Qd5 {[%clk 0:00:11]}  Bc7 {[%clk 0:00:02]} 56. Qa2 {[%clk 0:00:10]}  Nd8 {[%clk 0:00:02]} 57. Qa8 {[%clk 0:00:11]}  Qe7 {[%clk 0:00:02]} 58. Qc8 {[%clk 0:00:10]}  Qg5 {[%clk 0:00:02]} 59. Bf3 {[%clk 0:00:10]}  Qh4 {[%clk 0:00:02]} 60. Qa6 {[%clk 0:00:08]}  Qh2+ {[%clk 0:00:03]} 61. Kd1 {[%clk 0:00:08]}  Qg1+ {[%clk 0:00:04]} 62. Kc2 {[%clk 0:00:07]}  Qe3 {[%clk 0:00:05]} 63. Bd1 {[%clk 0:00:07]}  Qf2+ {[%clk 0:00:05]} 64. Kc1 {[%clk 0:00:07]}  h5 {[%clk 0:00:06]} 65. Qf6 {[%clk 0:00:07]}  Qe3+ {[%clk 0:00:05]} 66. Kc2 {[%clk 0:00:07]}  Qf2+ {[%clk 0:00:05]} 67. Kb3 {[%clk 0:00:07]}  Qe1 {[%clk 0:00:05]} 68. Qf8+ {[%clk 0:00:07]}  Rg8 {[%clk 0:00:05]} 69. Qh6# {[%clk 0:00:08]} 1-0


[Site "https://www.chess.com"]

[Event "Titled Tuesday Blitz December 27 Late 2022"]
[White "Can, Melih Kaan"]
[Black "Poliakova, Varvara"]
[WhiteFideId "6317383"]
[BlackFideId "13518313"]
[WhiteElo "2069"]
[BlackElo "2010"]
[Result "0-1"]
[Round "08"]
[TimeControl "180+2"]
[Date "2022.12.27"]
[WhiteClock "0:00:05"]
[BlackClock "0:00:33"]

1. e4 {[%clk 0:03:00]}  e5 {[%clk 0:02:41]} 2. Nf3 {[%clk 0:02:58]}  Nc6 {[%clk 0:02:40]} 3. Bb5 {[%clk 0:02:59]}  a6 {[%clk 0:02:39]} 4. Ba4 {[%clk 0:02:59]}  Nf6 {[%clk 0:02:40]} 5. d4 {[%clk 0:03:00]}  exd4 {[%clk 0:02:38]} 6. O-O {[%clk 0:02:58]}  Be7 {[%clk 0:02:31]} 7. Re1 {[%clk 0:02:58]}  b5 {[%clk 0:02:29]} 8. e5 {[%clk 0:02:58]}  Nxe5 {[%clk 0:02:27]} 9. Rxe5 {[%clk 0:02:57]}  bxa4 {[%clk 0:02:25]} 10. Nxd4 {[%clk 0:02:57]}  O-O {[%clk 0:02:22]} 11. Nf5 {[%clk 0:02:55]}  Re8 {[%clk 0:02:19]} 12. Bg5 {[%clk 0:02:51]}  d6 {[%clk 0:02:15]} 13. Nxe7+ {[%clk 0:02:40]}  Rxe7 {[%clk 0:02:13]} 14. Bxf6 {[%clk 0:02:40]}  gxf6 {[%clk 0:02:11]} 15. Rh5 {[%clk 0:02:33]}  Qe8 {[%clk 0:02:07]} 16. Nc3 {[%clk 0:02:28]}  Bb7 {[%clk 0:01:54]} 17. h3 {[%clk 0:02:18]}  a3 {[%clk 0:01:44]} 18. b3 {[%clk 0:02:07]}  Kh8 {[%clk 0:01:37]} 19. Qd4 {[%clk 0:02:01]}  Re5 {[%clk 0:01:34]} 20. Rh6 {[%clk 0:01:56]}  Qg8 {[%clk 0:01:31]} 21. g3 {[%clk 0:01:48]}  Qg5 {[%clk 0:01:29]} 22. Qh4 {[%clk 0:01:40]}  Qxh4 {[%clk 0:01:29]} 23. Rxh4 {[%clk 0:01:41]}  Rae8 {[%clk 0:01:29]} 24. f3 {[%clk 0:01:16]}  Re1+ {[%clk 0:01:21]} 25. Rxe1 {[%clk 0:01:16]}  Rxe1+ {[%clk 0:01:22]} 26. Kf2 {[%clk 0:01:17]}  Rc1 {[%clk 0:01:19]} 27. Rb4 {[%clk 0:01:17]}  Rxc2+ {[%clk 0:01:17]} 28. Ne2 {[%clk 0:01:16]}  Bd5 {[%clk 0:01:12]} 29. Ke3 {[%clk 0:01:10]}  Rxa2 {[%clk 0:01:13]} 30. Nc3 {[%clk 0:01:10]}  Ra1 {[%clk 0:01:05]} 31. Ra4 {[%clk 0:00:53]}  Bxb3 {[%clk 0:01:04]} 32. Rxa6 {[%clk 0:00:53]}  a2 {[%clk 0:01:04]} 33. Kf4 {[%clk 0:00:53]}  Kg7 {[%clk 0:00:56]} 34. Ra3 {[%clk 0:00:51]}  Be6 {[%clk 0:00:54]} 35. Ra7 {[%clk 0:00:49]}  Rc1 {[%clk 0:00:54]} 36. Nxa2 {[%clk 0:00:48]}  Ra1 {[%clk 0:00:55]} 37. Rxc7 {[%clk 0:00:48]}  Rxa2 {[%clk 0:00:55]} 38. g4 {[%clk 0:00:47]}  Bd5 {[%clk 0:00:53]} 39. Rc3 {[%clk 0:00:43]}  Rb2 {[%clk 0:00:52]} 40. Rd3 {[%clk 0:00:43]}  Bb7 {[%clk 0:00:50]} 41. Rxd6 {[%clk 0:00:35]}  Rb3 {[%clk 0:00:50]} 42. Kg3 {[%clk 0:00:34]}  Rxf3+ {[%clk 0:00:50]} 43. Kh4 {[%clk 0:00:35]}  Kg6 {[%clk 0:00:49]} 44. Rb6 {[%clk 0:00:34]}  Bd5 {[%clk 0:00:48]} 45. Rb8 {[%clk 0:00:35]}  Kg7 {[%clk 0:00:48]} 46. Rd8 {[%clk 0:00:32]}  Rd3 {[%clk 0:00:48]} 47. Rd7 {[%clk 0:00:19]}  Be4 {[%clk 0:00:47]} 48. Re7 {[%clk 0:00:11]}  Bg2 {[%clk 0:00:45]} 49. g5 {[%clk 0:00:12]}  f5 {[%clk 0:00:41]} 50. g6 {[%clk 0:00:07]}  Rxh3+ {[%clk 0:00:32]} 51. Kg5 {[%clk 0:00:05]}  h6+ {[%clk 0:00:33]} 52. Kf4 {[%clk 0:00:05]}  Kxg6 {[%clk 0:00:33]} 0-1


[Site "https://www.chess.com"]

[Event "Titled Tuesday Blitz December 27 Late 2022"]
[White "Carbone, Diego"]
[Black "Arnold, Ken"]
[WhiteFideId "3002179"]
[BlackFideId "2056836"]
[WhiteElo "2336"]
[BlackElo "2355"]
[Result "1-0"]
[Round "08"]
[TimeControl "180+2"]
[Date "2022.12.27"]
[WhiteClock "0:00:08"]
[BlackClock "0:00:12"]

1. d4 {[%clk 0:02:52]}  d5 {[%clk 0:02:59]} 2. c4 {[%clk 0:02:51]}  c6 {[%clk 0:03:00]} 3. g3 {[%clk 0:02:52]}  Nf6 {[%clk 0:03:00]} 4. Nf3 {[%clk 0:02:52]}  Bf5 {[%clk 0:03:00]} 5. Nbd2 {[%clk 0:02:52]}  e6 {[%clk 0:03:00]} 6. Bg2 {[%clk 0:02:51]}  Nbd7 {[%clk 0:03:00]} 7. O-O {[%clk 0:02:52]}  Bd6 {[%clk 0:03:00]} 8. b3 {[%clk 0:02:52]}  O-O {[%clk 0:03:00]} 9. Bb2 {[%clk 0:02:53]}  Qc7 {[%clk 0:02:59]} 10. Nh4 {[%clk 0:02:50]}  Bg6 {[%clk 0:02:58]} 11. Nxg6 {[%clk 0:02:50]}  hxg6 {[%clk 0:02:58]} 12. Rc1 {[%clk 0:02:51]}  Rfe8 {[%clk 0:02:54]} 13. Nf3 {[%clk 0:02:39]}  Rad8 {[%clk 0:02:52]} 14. Qc2 {[%clk 0:02:32]}  Qb8 {[%clk 0:02:51]} 15. cxd5 {[%clk 0:02:26]}  exd5 {[%clk 0:02:48]} 16. e3 {[%clk 0:02:26]}  Ne4 {[%clk 0:02:46]} 17. Ne1 {[%clk 0:02:26]}  Ndf6 {[%clk 0:02:43]} 18. Nd3 {[%clk 0:02:26]}  g5 {[%clk 0:02:24]} 19. f3 {[%clk 0:02:13]}  Nxg3 {[%clk 0:02:18]} 20. hxg3 {[%clk 0:02:13]}  Bxg3 {[%clk 0:02:18]} 21. Ne5 {[%clk 0:02:12]}  Qd6 {[%clk 0:01:11]} 22. Bh3 {[%clk 0:01:53]}  g4 {[%clk 0:00:51]} 23. Bxg4 {[%clk 0:01:36]}  Nxg4 {[%clk 0:00:49]} 24. fxg4 {[%clk 0:01:37]}  Qh6 {[%clk 0:00:43]} 25. Qg2 {[%clk 0:01:35]}  Qxe3+ {[%clk 0:00:42]} 26. Kh1 {[%clk 0:01:29]}  Re6 {[%clk 0:00:37]} 27. g5 {[%clk 0:00:58]}  Qxg5 {[%clk 0:00:37]} 28. Nf3 {[%clk 0:00:57]}  Rh6+ {[%clk 0:00:29]} 29. Kg1 {[%clk 0:00:57]}  Qe3+ {[%clk 0:00:28]} 30. Rf2 {[%clk 0:00:55]}  Rdd6 {[%clk 0:00:23]} 31. Rc3 {[%clk 0:00:19]}  Bxf2+ {[%clk 0:00:20]} 32. Kf1 {[%clk 0:00:19]}  Qf4 {[%clk 0:00:19]} 33. Kxf2 {[%clk 0:00:16]}  Rdg6 {[%clk 0:00:17]} 34. Qf1 {[%clk 0:00:15]}  Rh2+ {[%clk 0:00:17]} 35. Ke1 {[%clk 0:00:14]}  Re6+ {[%clk 0:00:16]} 36. Kd1 {[%clk 0:00:14]}  Qg4 {[%clk 0:00:15]} 37. Bc1 {[%clk 0:00:12]}  Rg2 {[%clk 0:00:14]} 38. Bd2 {[%clk 0:00:11]}  Rg1 {[%clk 0:00:14]} 39. Qxg1 {[%clk 0:00:09]}  Qe4 {[%clk 0:00:13]} 40. Qf2 {[%clk 0:00:09]}  Qb1+ {[%clk 0:00:13]} 41. Rc1 {[%clk 0:00:09]}  Qd3 {[%clk 0:00:13]} 42. Ne5 {[%clk 0:00:09]}  f6 {[%clk 0:00:12]} 43. Nxd3 {[%clk 0:00:08]} 1-0


[Site "https://www.chess.com"]

[Event "Titled Tuesday Blitz December 27 Late 2022"]
[White "Corredor Castellanos, Camilo"]
[Black "Fernandez Garcia, Gumersindo"]
[WhiteFideId "4425871"]
[BlackFideId "24516740"]
[WhiteElo "1957"]
[BlackElo "2160"]
[Result "0-1"]
[Round "08"]
[TimeControl "180+2"]
[Date "2022.12.27"]
[WhiteClock "0:00:45"]
[BlackClock "0:00:57"]

1. e4 {[%clk 0:03:00]}  c5 {[%clk 0:02:56]} 2. Nf3 {[%clk 0:03:00]}  g6 {[%clk 0:02:57]} 3. d4 {[%clk 0:02:59]}  cxd4 {[%clk 0:02:57]} 4. Nxd4 {[%clk 0:03:00]}  Bg7 {[%clk 0:02:58]} 5. c4 {[%clk 0:02:58]}  Nc6 {[%clk 0:02:58]} 6. Nc2 {[%clk 0:02:58]}  Nf6 {[%clk 0:02:57]} 7. Nc3 {[%clk 0:02:57]}  d6 {[%clk 0:02:58]} 8. Be2 {[%clk 0:02:58]}  O-O {[%clk 0:02:53]} 9. O-O {[%clk 0:02:58]}  Bd7 {[%clk 0:02:47]} 10. Be3 {[%clk 0:02:53]}  Rc8 {[%clk 0:02:47]} 11. Rb1 {[%clk 0:02:42]}  a6 {[%clk 0:02:39]} 12. f3 {[%clk 0:02:27]}  Ne5 {[%clk 0:02:34]} 13. b3 {[%clk 0:02:21]}  b5 {[%clk 0:02:33]} 14. f4 {[%clk 0:02:06]}  Neg4 {[%clk 0:02:27]} 15. Bd4 {[%clk 0:02:06]}  e5 {[%clk 0:02:14]} 16. fxe5 {[%clk 0:02:05]}  dxe5 {[%clk 0:02:13]} 17. Bf2 {[%clk 0:01:54]}  Nxf2 {[%clk 0:02:00]} 18. Rxf2 {[%clk 0:01:55]}  Be6 {[%clk 0:01:45]} 19. Ne3 {[%clk 0:01:39]}  Bh6 {[%clk 0:01:29]} 20. Qxd8 {[%clk 0:01:08]}  Rfxd8 {[%clk 0:01:27]} 21. Rxf6 {[%clk 0:01:06]}  Bxe3+ {[%clk 0:01:26]} 22. Kf1 {[%clk 0:00:58]}  bxc4 {[%clk 0:01:18]} 23. bxc4 {[%clk 0:00:57]}  Bxc4 {[%clk 0:01:17]} 24. Bxc4 {[%clk 0:00:57]}  Rxc4 {[%clk 0:01:16]} 25. Nd5 {[%clk 0:00:58]}  Rxe4 {[%clk 0:01:05]} 26. Rb7 {[%clk 0:00:54]}  Rxd5 {[%clk 0:00:59]} 27. Rfxf7 {[%clk 0:00:54]}  Rf4+ {[%clk 0:00:59]} 28. Rxf4 {[%clk 0:00:53]}  exf4 {[%clk 0:01:00]} 29. Ke2 {[%clk 0:00:52]}  Rd2+ {[%clk 0:00:59]} 30. Kf3 {[%clk 0:00:53]}  Rxa2 {[%clk 0:00:59]} 31. h4 {[%clk 0:00:54]}  Rf2+ {[%clk 0:00:59]} 32. Ke4 {[%clk 0:00:54]}  Rxg2 {[%clk 0:00:59]} 33. Ke5 {[%clk 0:00:54]}  f3 {[%clk 0:00:59]} 34. Rd7 {[%clk 0:00:45]}  f2 {[%clk 0:00:57]} 0-1


[Site "https://www.chess.com"]

[Event "Titled Tuesday Blitz December 27 Late 2022"]
[White "Deac, Bogdan-Daniel"]
[Black "Gubajdullin, Alexei"]
[WhiteFideId "1226380"]
[BlackFideId "4141202"]
[WhiteElo "2700"]
[BlackElo "2285"]
[Result "1-0"]
[Round "08"]
[TimeControl "180+2"]
[Date "2022.12.27"]
[WhiteClock "0:00:11"]
[BlackClock "0:00:01"]

1. b3 {[%clk 0:03:00]}  g6 {[%clk 0:02:58]} 2. Bb2 {[%clk 0:03:01]}  Nf6 {[%clk 0:02:58]} 3. Nf3 {[%clk 0:03:01]}  Bg7 {[%clk 0:02:58]} 4. g3 {[%clk 0:03:02]}  O-O {[%clk 0:02:59]} 5. Bg2 {[%clk 0:03:02]}  c5 {[%clk 0:02:59]} 6. c4 {[%clk 0:03:02]}  d5 {[%clk 0:02:56]} 7. cxd5 {[%clk 0:03:01]}  Nxd5 {[%clk 0:02:56]} 8. Bxg7 {[%clk 0:03:01]}  Kxg7 {[%clk 0:02:56]} 9. O-O {[%clk 0:03:01]}  Nc6 {[%clk 0:02:50]} 10. d4 {[%clk 0:03:01]}  cxd4 {[%clk 0:02:48]} 11. Nxd4 {[%clk 0:03:02]}  Nxd4 {[%clk 0:02:48]} 12. Qxd4+ {[%clk 0:03:01]}  Nf6 {[%clk 0:02:48]} 13. Qb2 {[%clk 0:02:57]}  Qb6 {[%clk 0:02:34]} 14. Nc3 {[%clk 0:02:55]}  Be6 {[%clk 0:02:33]} 15. Na4 {[%clk 0:02:55]}  Qb4 {[%clk 0:02:31]} 16. Rac1 {[%clk 0:02:38]}  Rac8 {[%clk 0:02:29]} 17. h3 {[%clk 0:02:37]}  b5 {[%clk 0:02:26]} 18. Nc3 {[%clk 0:02:37]}  Qd4 {[%clk 0:02:14]} 19. Rfd1 {[%clk 0:02:36]}  Qe5 {[%clk 0:02:13]} 20. f4 {[%clk 0:02:36]}  Qe3+ {[%clk 0:02:12]} 21. Kh2 {[%clk 0:02:37]}  Kg8 {[%clk 0:01:48]} 22. Rd3 {[%clk 0:02:10]}  Qc5 {[%clk 0:01:41]} 23. e4 {[%clk 0:02:06]}  b4 {[%clk 0:01:03]} 24. Ne2 {[%clk 0:02:04]}  Qf2 {[%clk 0:01:02]} 25. Rf1 {[%clk 0:01:52]}  Qc5 {[%clk 0:00:55]} 26. Nd4 {[%clk 0:01:52]}  Bd7 {[%clk 0:00:26]} 27. Qd2 {[%clk 0:01:36]}  Rc7 {[%clk 0:00:24]} 28. e5 {[%clk 0:01:35]}  Nh5 {[%clk 0:00:24]} 29. f5 {[%clk 0:00:58]}  Qxe5 {[%clk 0:00:19]} 30. Re1 {[%clk 0:00:58]}  Qf6 {[%clk 0:00:18]} 31. g4 {[%clk 0:00:58]}  Ng7 {[%clk 0:00:17]} 32. g5 {[%clk 0:00:52]}  Qd6+ {[%clk 0:00:17]} 33. Kh1 {[%clk 0:00:52]}  Qc5 {[%clk 0:00:16]} 34. f6 {[%clk 0:00:40]}  exf6 {[%clk 0:00:16]} 35. gxf6 {[%clk 0:00:40]}  Nh5 {[%clk 0:00:16]} 36. Rf1 {[%clk 0:00:40]}  Qe5 {[%clk 0:00:14]} 37. Qf2 {[%clk 0:00:35]}  Bb5 {[%clk 0:00:13]} 38. Nxb5 {[%clk 0:00:35]}  Qxb5 {[%clk 0:00:12]} 39. Rd5 {[%clk 0:00:35]}  Qb6 {[%clk 0:00:10]} 40. Qh4 {[%clk 0:00:30]}  Rfc8 {[%clk 0:00:09]} 41. Rxh5 {[%clk 0:00:29]}  Rc1 {[%clk 0:00:07]} 42. Re5 {[%clk 0:00:18]}  Rxf1+ {[%clk 0:00:06]} 43. Bxf1 {[%clk 0:00:19]}  Qd6 {[%clk 0:00:04]} 44. Re4 {[%clk 0:00:13]}  Qd1 {[%clk 0:00:03]} 45. Kg1 {[%clk 0:00:11]}  Rf8 {[%clk 0:00:01]} 46. Qh6 {[%clk 0:00:11]} 1-0


[Site "https://www.chess.com"]

[Event "Titled Tuesday Blitz December 27 Late 2022"]
[White "Djokic, Mihailo"]
[Black "Papayan, Oleg"]
[WhiteFideId "976440"]
[BlackFideId "4193911"]
[WhiteElo "2192"]
[BlackElo "2253"]
[Result "0-1"]
[Round "08"]
[TimeControl "180+2"]
[Date "2022.12.27"]
[WhiteClock "0:00:13"]
[BlackClock "0:00:04"]

1. e4 {[%clk 0:03:00]}  e5 {[%clk 0:02:59]} 2. Nf3 {[%clk 0:03:00]}  Nc6 {[%clk 0:02:59]} 3. Nc3 {[%clk 0:03:00]}  Nf6 {[%clk 0:03:00]} 4. Bb5 {[%clk 0:03:00]}  Nd4 {[%clk 0:02:59]} 5. Ba4 {[%clk 0:03:00]}  Bc5 {[%clk 0:02:43]} 6. Nxe5 {[%clk 0:02:54]}  Qe7 {[%clk 0:02:38]} 7. Nd3 {[%clk 0:02:54]}  Nxe4 {[%clk 0:02:36]} 8. O-O {[%clk 0:02:52]}  Nxc3 {[%clk 0:02:31]} 9. dxc3 {[%clk 0:02:52]}  Ne6 {[%clk 0:02:31]} 10. Nxc5 {[%clk 0:02:51]}  Qxc5 {[%clk 0:02:31]} 11. Be3 {[%clk 0:02:51]}  Qa5 {[%clk 0:02:25]} 12. Bb3 {[%clk 0:02:50]}  O-O {[%clk 0:02:24]} 13. Re1 {[%clk 0:02:47]}  d6 {[%clk 0:02:11]} 14. Qf3 {[%clk 0:02:45]}  c6 {[%clk 0:01:33]} 15. Rad1 {[%clk 0:02:40]}  Qc7 {[%clk 0:01:33]} 16. Qg3 {[%clk 0:02:38]}  d5 {[%clk 0:01:31]} 17. Qxc7 {[%clk 0:02:37]}  Nxc7 {[%clk 0:01:32]} 18. Bc5 {[%clk 0:02:37]}  Re8 {[%clk 0:01:09]} 19. Rxe8+ {[%clk 0:02:37]}  Nxe8 {[%clk 0:01:10]} 20. c4 {[%clk 0:02:37]}  b6 {[%clk 0:01:02]} 21. Be3 {[%clk 0:02:32]}  dxc4 {[%clk 0:01:00]} 22. Bxc4 {[%clk 0:02:30]}  Bf5 {[%clk 0:00:52]} 23. f3 {[%clk 0:02:21]}  Bxc2 {[%clk 0:00:49]} 24. Rd7 {[%clk 0:02:19]}  Bg6 {[%clk 0:00:42]} 25. b4 {[%clk 0:02:19]}  Nf6 {[%clk 0:00:35]} 26. Rc7 {[%clk 0:02:19]}  Nd5 {[%clk 0:00:34]} 27. Bxd5 {[%clk 0:02:08]}  cxd5 {[%clk 0:00:35]} 28. a4 {[%clk 0:02:06]}  f6 {[%clk 0:00:24]} 29. b5 {[%clk 0:01:55]}  Be8 {[%clk 0:00:20]} 30. Kf2 {[%clk 0:01:51]}  a6 {[%clk 0:00:20]} 31. Bxb6 {[%clk 0:01:47]}  axb5 {[%clk 0:00:20]} 32. a5 {[%clk 0:01:47]}  b4 {[%clk 0:00:16]} 33. Ke3 {[%clk 0:01:45]}  Bb5 {[%clk 0:00:11]} 34. Kd4 {[%clk 0:01:40]}  b3 {[%clk 0:00:10]} 35. Kc3 {[%clk 0:01:40]}  Bc4 {[%clk 0:00:11]} 36. Rd7 {[%clk 0:01:30]}  h5 {[%clk 0:00:10]} 37. h4 {[%clk 0:01:30]}  Kh7 {[%clk 0:00:09]} 38. Kb2 {[%clk 0:01:26]}  Kg6 {[%clk 0:00:09]} 39. g4 {[%clk 0:01:25]}  hxg4 {[%clk 0:00:04]} 40. fxg4 {[%clk 0:01:26]}  Rh8 {[%clk 0:00:04]} 41. h5+ {[%clk 0:01:24]}  Kh6 {[%clk 0:00:05]} 42. Be3+ {[%clk 0:01:24]}  Kh7 {[%clk 0:00:04]} 43. Bd4 {[%clk 0:01:24]}  Kh6 {[%clk 0:00:04]} 44. Ra7 {[%clk 0:01:18]}  Rg8 {[%clk 0:00:02]} 45. a6 {[%clk 0:01:17]}  Kg5 {[%clk 0:00:02]} 46. Kc3 {[%clk 0:00:22]}  Kxg4 {[%clk 0:00:03]} 47. h6 {[%clk 0:00:23]}  gxh6 {[%clk 0:00:03]} 48. Bxf6 {[%clk 0:00:20]}  h5 {[%clk 0:00:04]} 49. Kb2 {[%clk 0:00:12]}  h4 {[%clk 0:00:04]} 50. Rh7 {[%clk 0:00:12]}  Bxa6 {[%clk 0:00:03]} 51. Rxh4+ {[%clk 0:00:12]}  Kf5 {[%clk 0:00:04]} 52. Bd4 {[%clk 0:00:12]}  Bc4 {[%clk 0:00:04]} 53. Rh5+ {[%clk 0:00:11]}  Ke4 {[%clk 0:00:04]} 54. Rh4+ {[%clk 0:00:12]}  Kd3 {[%clk 0:00:05]} 55. Be5 {[%clk 0:00:12]}  Rg2+ {[%clk 0:00:05]} 56. Ka3 {[%clk 0:00:12]}  Ra2+ {[%clk 0:00:06]} 57. Kb4 {[%clk 0:00:13]}  b2 {[%clk 0:00:04]} 58. Rh3+ {[%clk 0:00:13]}  Ke4 {[%clk 0:00:04]} 0-1


[Site "https://www.chess.com"]